bitfinex-derivatives/quotes_SOLF0:USTF0_20250228
["timestamp","ask_amount","ask_price","bid_price","bid_amount"]
[1740722179241,117.82286224,126.75,126.55,196.43462599]
[1740722179547,7.899,126.73,126.56,9.38552599]
[1740722179740,117.82286224,126.75,126.57,1.43462599]
[1740722179944,0.0594506,126.66,126.64,0.05777106]
[1740722180138,15.28,126.75,126.65,7.9035]
[1740722180443,215.1,126.78,126.66,7.9509]
[1740722181352,0.0566815,126.73,126.71,0.05985794]
[1740722181549,7.8956,126.78,126.71,0.05985794]
[1740722181847,15.26,126.82,126.66,7.9509]
[1740722182440,215.02,126.86,126.66,202.9509]
[1740722182646,215.02,126.86,126.66,7.9509]
[1740722182846,3.453e-05,126.75,126.73,0.0549913]
[1740722183347,10.49541082,126.87,126.73,0.0549913]
[1740722183348,10.49541082,126.87,126.73,3.94]
[1740722183549,10.49541082,126.87,126.72,15.24]
[1740722183739,7.8873,126.91,126.73,3.01077874]
[1740722183936,7.8873,126.91,126.74,3.01065422]
[1740722184137,7.8882,126.9,126.79,7.8947]
[1740722184345,15.24,126.92,126.8,4.0489]
[1740722184546,0.05566671,126.84,126.81,0.05312622]
[1740722184941,0.2415,126.91,126.8,4.0489]
[1740722185244,0.06071736,126.84,126.81,0.0563049]
[1740722185543,1.44581698,126.9,126.75,3.8199]
[1740722185738,0.05363983,126.84,126.81,0.05580091]
[1740722186244,0.2415,126.91,126.75,3.8199]
[1740722186443,0.05695979,126.84,126.81,0.0507367]
[1740722186646,0.05695979,126.84,126.81,3.67e-05]
[1740722186848,3.94,126.84,126.72,4.005]
[1740722187144,3.94,126.84,126.66,15.22]
[1740722187145,190.0,126.83,126.67,7.7669]
[1740722187445,230.04,126.85,126.67,11.7719]
[1740722187644,1.44649845,126.84,126.67,11.7719]
[1740722187846,7.8973,126.75,126.67,11.7719]
[1740722188145,0.05499117,126.77,126.74,0.05839772]
[1740722188346,0.05499117,126.77,126.67,11.7719]
[1740722188347,230.04,126.85,126.67,11.7719]
[1740722188546,1.44617234,126.84,126.67,19.6741]
[1740722188747,0.05751018,126.77,126.74,0.05186131]
[1740722189142,7.8972,126.76,126.67,19.6741]
[1740722189340,7.8972,126.76,126.68,7.9014]
[1740722189643,0.05964197,126.77,126.74,0.05263319]
[1740722189838,214.82,126.85,126.73,7.8983]
[1740722190043,0.05518938,126.77,126.74,0.05996309]
[1740722190346,214.82,126.85,126.73,7.898]
[1740722190546,214.82,126.85,126.67,11.7719]
[1740722190847,7.893,126.82,126.73,7.898]
[1740722191049,214.82,126.85,126.67,13.35080581]
[1740722191241,214.82,126.85,126.68,1.43320377]
[1740722191546,0.0591059,126.77,126.75,0.06007549]
[1740722191746,214.82,126.85,126.75,0.06007549]
[1740722191947,214.82,126.85,126.67,13.35080581]
[1740722192444,214.82,126.85,126.7,7.9002]
[1740722192643,214.82,126.85,126.67,13.35080581]
[1740722193047,0.04989208,126.79,126.76,0.05477626]
[1740722193348,214.82,126.85,126.67,13.35080581]
[1740722193546,0.05338856,126.79,126.76,0.05759619]
[1740722193951,214.82,126.85,126.76,0.05759619]
[1740722194261,0.05438379,126.79,126.67,13.35080581]
[1740722194442,190.0,126.84,126.79,0.05306946]
[1740722194643,190.0,126.84,126.67,13.35080581]
[1740722194644,0.05802115,126.74,126.67,13.35080581]
[1740722194848,15.16,126.8,126.67,13.35080581]
[1740722195051,15.16,126.8,126.68,7.9014]
[1740722195446,15.16,126.8,126.67,11.7719]
[1740722195647,7.9004,126.7,126.67,7.8249]
[1740722196054,7.8999,126.71,126.67,7.88264906]
[1740722196253,0.05293666,126.7,126.67,7.88264906]
[1740722196551,190.0,126.79,126.67,7.88536528]
[1740722196746,0.05355091,126.7,126.67,7.88536528]
[1740722196948,190.0,126.78,126.61,3.8765]
[1740722197143,190.0,126.77,126.67,0.05509894]
[1740722197350,0.0560453,126.7,126.67,0.05509894]
[1740722197649,190.0,126.77,126.67,0.05609851]
[1740722197856,0.05421512,126.7,126.67,0.05609851]
[1740722198149,15.14,126.73,126.67,0.05086664]
[1740722198350,0.05079002,126.7,126.67,0.05086664]
[1740722198748,7.9016,126.68,126.67,0.05086664]
[1740722198951,0.05079002,126.7,126.67,0.05086664]
[1740722199452,7.9016,126.68,126.67,0.05086664]
[1740722200355,7.9011,126.69,126.67,0.05086664]
[1740722200554,0.05079002,126.7,126.67,0.05086664]
[1740722200949,7.9016,126.68,126.67,0.05086664]
[1740722201152,0.05079002,126.7,126.61,3.8765]
[1740722201457,38.87,126.73,126.56,8.0587]
[1740722202359,0.05718435,126.66,126.63,5.124e-05]
[1740722202659,15.14,126.65,126.49,3.9512]
[1740722202858,15.14,126.65,126.49,8.0161]
[1740722203458,15.14,126.65,126.51,7.9121]
[1740722203757,0.06049788,126.58,126.56,0.0590117]
[1740722203958,7.9085,126.57,126.56,0.0590117]
[1740722204155,229.98,126.65,126.49,8.0161]
[1740722204354,0.05906305,126.58,126.55,0.05003834]
[1740722204550,0.05906305,126.58,126.49,4.0649]
[1740722204754,1.44166788,126.64,126.49,4.0649]
[1740722205055,1.44166788,126.64,126.45,3.9512]
[1740722205357,1.57940456,126.63,126.45,12.0801]
[1740722205560,7.9111,126.53,126.46,7.9148]
[1740722205756,15.1,126.58,126.53,0.0560501]
[1740722205957,0.05043371,126.55,126.53,0.0560501]
[1740722206152,7.9097,126.56,126.49,7.9133]
[1740722206357,0.05777522,126.55,126.53,0.05745872]
[1740722206559,0.05777522,126.55,126.44,85.2788348]
[1740722206759,1.43993632,126.57,126.4,19.723]
[1740722206955,1.43993632,126.57,126.4,11.8044]
[1740722207661,0.05643836,126.5,126.47,0.05931404]
[1740722208058,15.1,126.51,126.4,11.8044]
[1740722208258,0.05237729,126.5,126.47,0.0598945]
[1740722208556,214.9,126.55,126.4,11.8044]
[1740722208854,0.06034127,126.5,126.49,7.9135]
[1740722209164,205.1,126.61,126.43,15.1]
[1740722209461,205.1,126.61,126.44,1.43612522]
[1740722209657,205.1,126.61,126.43,15.1]
[1740722210455,0.05950808,126.53,126.51,0.06002434]
[1740722210851,15.1,126.61,126.43,15.1]
[1740722211161,0.05959692,126.53,126.51,0.05676249]
[1740722211559,15.1,126.61,126.44,1.43609427]
[1740722211761,0.05883297,126.53,126.51,0.05306487]
[1740722212158,15.1,126.61,126.44,1.43609427]
[1740722212361,0.05144526,126.53,126.51,0.05415255]
[1740722212761,15.1,126.61,126.43,15.1]
[1740722212961,0.05678286,126.53,126.51,0.05129858]
[1740722213358,15.1,126.61,126.44,1.4361614]
[1740722213562,5.743e-05,126.53,126.51,0.05021099]
[1740722213764,5.743e-05,126.53,126.52,7.9116]
[1740722213956,0.31,126.67,126.52,7.6114]
[1740722214363,0.31,126.67,126.53,3.7725]
[1740722214865,0.05054018,126.61,126.59,0.05766063]
[1740722215262,15.04,126.68,126.53,3.7725]
[1740722215463,0.0574324,126.61,126.59,0.05468366]
[1740722215765,15.04,126.68,126.53,3.7725]
[1740722216061,0.0518519,126.61,126.59,0.05239054]
[1740722216473,15.04,126.68,126.53,3.7725]
[1740722216763,0.05795044,126.61,126.59,0.05155916]
[1740722217065,15.04,126.68,126.53,3.7725]
[1740722217262,0.05797315,126.61,126.59,0.05188417]
[1740722217654,7.9064,126.61,126.55,7.9093]
[1740722217860,0.05771252,126.61,126.59,0.05956821]
[1740722218160,7.904,126.65,126.59,7.9071]
[1740722218362,0.06017183,126.61,126.59,0.05334282]
[1740722218561,7.9035,126.65,126.53,3.7725]
[1740722218764,7.9035,126.65,126.53,198.7725]
[1740722218954,0.3945,126.7,126.54,1.43502639]
[1740722219156,0.31,126.7,126.54,196.43502639]
[1740722219365,0.31,126.7,126.54,195.0]
[1740722219865,0.0573194,126.63,126.61,0.05161888]
[1740722220066,214.98,126.71,126.56,15.0]
[1740722220266,214.98,126.71,126.56,210.0]
[1740722220667,214.98,126.71,126.57,1.43466797]
[1740722220866,214.98,126.71,126.56,15.0]
[1740722221167,0.05698142,126.65,126.62,0.04991527]
[1740722221466,0.3661,126.7,126.53,3.7725]
[1740722221670,0.05618864,126.65,126.62,0.05492933]
[1740722221961,16.51349565,126.78,126.63,7.9047]
[1740722221962,7.9017,126.68,126.63,7.9047]
[1740722222163,0.4234,126.77,126.58,15.0]
[1740722222369,1.44589631,126.76,126.58,15.0]
[1740722222666,1.44589631,126.76,126.53,198.7725]
[1740722222667,15.7947,126.75,126.53,198.7725]
[1740722222868,7.9041,126.65,126.6,7.9066]
[1740722223061,15.7947,126.75,126.53,198.7725]
[1740722223062,190.0,126.73,126.53,198.7725]
[1740722223267,0.05685334,126.65,126.53,198.7725]
[1740722223471,15.0,126.69,126.62,0.0586081]
[1740722223667,0.05054912,126.6,126.53,3.7725]
[1740722223863,7.9067,126.6,126.55,7.9093]
[1740722224064,0.05022755,126.58,126.55,7.96628843]
[1740722224264,0.05022755,126.58,126.55,0.05698843]
[1740722224966,190.0808,126.74,126.55,214.01698843]
[1740722225265,0.4781,126.73,126.56,1.43473064]
[1740722225667,0.4781,126.73,126.62,7.9052]
[1740722225967,0.4781,126.73,126.55,210.0]
[1740722226165,0.05015239,126.69,126.66,5.278e-05]
[1740722226366,15.07015239,126.69,126.55,15.0]
[1740722226665,7.9074,126.59,126.53,3.7725]
[1740722226870,190.0,126.68,126.53,3.7725]
[1740722227069,229.94,126.69,126.58,7.9075]
[1740722227368,0.05034074,126.65,126.62,0.05897109]
[1740722227564,229.94,126.69,126.62,0.05897109]
[1740722227769,0.0524085,126.65,126.62,0.05897109]
[1740722228367,0.4781,126.73,126.62,0.05897109]
[1740722228562,15.02,126.77,126.57,210.02]
[1740722228770,7.8995,126.72,126.67,7.9022]
[1740722229267,0.4781,126.77,126.58,195.0]
[1740722229466,0.4781,126.77,126.59,1.4343937]
[1740722229668,0.05576554,126.69,126.66,0.05874831]
[1740722229966,7.902,126.68,126.63,7.9046]
[1740722230166,0.05876797,126.69,126.66,0.04986684]
[1740722230363,7.8993,126.72,126.61,199.0486]
[1740722230569,0.05772135,126.69,126.66,0.05783539]
[1740722231071,0.05741743,126.69,126.66,0.05558054]
[1740722232075,7.9022,126.67,126.66,0.05558054]
[1740722233164,0.05741743,126.69,126.6,4.0325]
[1740722233367,7.905,126.63,126.6,4.0325]
[1740722233568,15.02,126.72,126.6,4.0325]
[1740722233766,7.9042,126.64,126.6,4.0325]
[1740722234069,15.02,126.72,126.6,4.0325]
[1740722234377,7.9058,126.62,126.6,4.0325]
[1740722234568,0.05941653,126.67,126.65,4.108e-05]
[1740722234775,0.0822,126.71,126.65,4.108e-05]
[1740722234976,4.0222,126.71,126.55,11.8004]
[1740722235177,1.44908088,126.7,126.55,11.8004]
[1740722235470,1.44908088,126.7,126.55,3.989]
[1740722235471,2.06048088,126.7,126.55,3.989]
[1740722235674,1.44908088,126.69,126.54,85.2788348]
[1740722235877,0.04987941,126.64,126.61,9.662e-05]
[1740722236071,7.9053,126.62,126.61,9.662e-05]
[1740722236272,3.94,126.62,126.49,11.7289]
[1740722236477,15.439,126.63,126.49,11.7289]
[1740722237074,0.05077611,126.57,126.55,0.05980904]
[1740722237375,14.96,126.63,126.49,11.7289]
[1740722237576,0.0508039,126.57,126.55,0.05987695]
[1740722237972,7.9084,126.58,126.49,11.7289]
[1740722238172,0.05659954,126.57,126.55,0.05638594]
[1740722238369,0.05659954,126.57,126.49,11.7289]
[1740722238575,190.0,126.62,126.55,0.05270289]
[1740722238777,0.05256477,126.54,126.49,11.7289]
[1740722238978,190.0,126.62,126.5,7.9128]
[1740722239275,0.05142986,126.53,126.5,0.05836235]
[1740722239475,190.0,126.62,126.49,11.7289]
[1740722239680,0.06065904,126.53,126.5,0.05840196]
[1740722239876,190.0,126.61,126.49,11.7289]
[1740722240071,0.05243563,126.53,126.5,0.0594305]
[1740722240280,0.479,126.6,126.49,19.6421]
[1740722240480,0.05768107,126.53,126.5,0.05199477]
[1740722240774,0.479,126.6,126.49,11.7289]
[1740722240975,0.05852775,126.53,126.5,0.05746789]
[1740722241180,14.96,126.63,126.49,11.7289]
[1740722241181,7.9061,126.61,126.49,11.7289]
[1740722241376,14.96,126.66,126.5,0.05340359]
[1740722241582,7.905,126.63,126.5,14.94]
[1740722242083,14.96,126.66,126.5,14.94]
[1740722242483,0.05146657,126.59,126.57,0.05256634]
[1740722242678,7.9078,126.58,126.5,14.94]
[1740722242879,0.04992452,126.59,126.5,14.94]
[1740722243080,1.45164159,126.65,126.5,14.94]
[1740722243276,0.0604518,126.56,126.53,0.05014142]
[1740722243483,1.45164159,126.65,126.49,11.7289]
[1740722243779,0.05601882,126.56,126.53,0.05871065]
[1740722243981,0.05601882,126.56,126.49,11.7289]
[1740722244177,7.9052,126.63,126.53,0.06063327]
[1740722244484,7.9052,126.63,126.49,11.7289]
[1740722244485,14.96,126.66,126.49,210.6889]
[1740722244783,7.9067,126.6,126.49,206.7289]
[1740722245083,14.96,126.66,126.49,11.7289]
[1740722245487,0.05212687,126.59,126.56,0.0554335]
[1740722245675,7.9046,126.64,126.57,7.9079]
[1740722245881,214.88,126.68,126.53,15.05887088]
[1740722246077,214.88,126.68,126.54,1.43503394]
[1740722246280,214.88,126.68,126.54,196.43503394]
[1740722246584,0.4888,126.73,126.55,1.43503394]
[1740722246778,7.9008,126.7,126.64,7.9035]
[1740722246979,0.4888,126.73,126.56,3.898]
[1740722247174,0.05693054,126.68,126.66,0.0511954]
[1740722247386,41.9364297,126.74,126.57,204.43403843]
[1740722247587,41.9364297,126.74,126.66,0.05189189]
[1740722247887,41.9364297,126.74,126.58,1.43453843]
[1740722247888,41.9364297,126.74,126.69,7.9005]
[1740722248181,41.9364297,126.74,126.61,210.0]
[1740722248486,1.57815828,126.73,126.61,210.0]
[1740722248790,0.05980756,126.69,126.66,0.05493239]
[1740722249081,1.57815828,126.73,126.66,0.05493239]
[1740722249776,31.44101888,126.8,126.66,0.05493239]
[1740722250083,1.948e-05,126.74,126.66,198.94]
[1740722250284,1.948e-05,126.74,126.71,0.05541833]
[1740722250486,31.44101888,126.8,126.71,0.05541833]
[1740722250886,31.44101888,126.8,126.66,1.43366901]
[1740722251188,31.44101888,126.8,126.65,18.8953]
[1740722251487,0.05990429,126.74,126.71,0.05571151]
[1740722251788,0.4737,126.86,126.66,1.43340102]
[1740722252380,7.8936,126.81,126.66,1.43340102]
[1740722252589,0.4737,126.86,126.66,1.43340102]
[1740722252786,0.05184586,126.75,126.72,0.05313536]
[1740722252987,0.4737,126.86,126.71,15.0]
[1740722253588,41.9364297,126.88,126.71,15.0]
[1740722253884,41.9364297,126.88,126.72,1.43250486]
[1740722254088,214.9,126.92,126.73,214.84]
[1740722254297,43.9883297,126.96,126.79,0.05468148]
[1740722254495,43.9883297,126.96,126.8,14.98]
[1740722254693,1.45018474,126.95,126.81,4.1462]
[1740722254890,1.45018474,126.95,126.87,6.443e-05]
[1740722255090,0.3928,126.94,126.87,6.443e-05]
[1740722255286,1.45018474,126.93,126.71,15.0]
[1740722255493,7.8936,126.81,126.73,7.8983]
[1740722255691,15.0,126.86,126.72,4.1462]
[1740722255894,2.1066,126.85,126.72,4.1462]
[1740722256093,0.05021224,126.8,126.78,0.06035172]
[1740722256394,2.1066,126.85,126.78,0.06035172]
[1740722256589,7.8947,126.79,126.78,0.06035172]
[1740722256798,2.1066,126.85,126.78,0.06035172]
[1740722256988,0.05185989,126.8,126.78,0.06035172]
[1740722257184,2.1066,126.85,126.78,0.06035172]
[1740722257388,0.05167995,126.8,126.78,0.06035172]
[1740722257595,7.894,126.81,126.78,0.06035172]
[1740722257894,0.05597054,126.8,126.78,0.06035172]
[1740722258395,0.05649506,126.8,126.78,0.06035172]
[1740722259296,7.896,126.77,126.73,4.1512]
[1740722259597,192.4999,126.85,126.65,19.1099]
[1740722259792,2.4999,126.85,126.67,4.0204]
[1740722260392,0.05553784,126.77,126.75,0.05908777]
[1740722260795,2.4999,126.85,126.7,7.9001]
[1740722260995,0.05576739,126.77,126.75,0.05010732]
[1740722261495,0.05202907,126.77,126.75,0.05325511]
[1740722261691,3.99202907,126.77,126.67,4.0204]
[1740722261891,0.05202907,126.77,126.65,3.9581]
[1740722262194,190.0,126.78,126.65,3.9581]
[1740722262591,190.0,126.78,126.65,11.8613]
[1740722262787,0.05109669,126.73,126.7,0.05085889]
[1740722263196,0.05109669,126.73,126.71,7.8994]
[1740722263391,0.05109669,126.73,126.7,0.05167292]
[1740722263600,229.64,126.79,126.7,0.05167292]
[1740722263892,237.5352,126.79,126.65,18.8981]
[1740722264096,0.05758847,126.76,126.73,0.05213363]
[1740722264299,214.72,126.89,126.73,0.05213363]
[1740722264494,0.05960957,126.76,126.73,0.05213363]
[1740722264697,14.92,126.88,126.66,1.43367265]
[1740722264997,14.92,126.88,126.8,0.05185864]
[1740722265293,7.8918,126.84,126.77,7.8957]
[1740722265797,0.05584979,126.82,126.79,0.05155811]
[1740722267193,214.72,126.89,126.79,0.05155811]
[1740722267194,0.25,126.94,126.79,0.05155811]
[1740722267496,1.9915,126.95,126.79,14.92]
[1740722267697,7.8861,126.93,126.83,7.8917]
[1740722267889,7.8861,126.93,126.84,4.0224]
[1740722268287,7.8867,126.92,126.84,4.0224]
[1740722268488,0.05059537,126.9,126.87,0.05209141]
[1740722270596,214.68,126.97,126.87,0.05209141]
[1740722270789,7.8843,126.96,126.85,3.868]
[1740722271498,7.883,126.98,126.9,7.8874]
[1740722272094,16.8515,127.01,126.93,0.05256984]
[1740722272295,16.8515,127.01,126.86,14.86]
[1740722272597,1.9915,127.01,126.96,0.05213115]
[1740722272801,1.9915,127.01,126.87,3.9291]
[1740722272997,1.9915,127.01,126.97,0.05313616]
[1740722273196,1.9915,127.01,126.9,7.8878]
[1740722273396,1.9915,127.01,126.98,0.05117689]
[1740722273598,1.9915,127.01,126.9,7.8878]
[1740722273799,1.9915,127.01,126.98,0.0532553]
[1740722274002,7.8823,126.99,126.98,0.0532553]
[1740722274201,1.9915,127.01,126.87,3.9291]
[1740722274497,14.82,127.04,126.97,0.05130762]
[1740722274695,7.8819,127.0,126.87,3.9291]
[1740722274999,214.62,127.05,126.99,0.06002501]
[1740722275194,214.62,127.05,126.93,7.8857]
[1740722275394,214.62,127.05,127.01,0.05394682]
[1740722275798,7.883,126.98,126.88,3.8532]
[1740722276000,7.883,126.98,126.92,7.8862]
[1740722276199,214.62,127.05,126.92,0.05877737]
[1740722276701,214.62,127.05,126.88,3.8532]
[1740722276902,214.62,127.05,126.97,0.05902165]
[1740722277297,214.62,127.05,126.89,1.57616833]
[1740722277799,214.62,127.05,127.0,0.0538435]
[1740722278000,7.8828,126.99,126.89,1.57616833]
[1740722278201,214.62,127.05,126.9,3.7895]
[1740722278403,7.882,127.0,126.94,7.8854]
[1740722278601,214.62,127.05,126.9,3.7895]
[1740722278902,1.44901955,127.04,126.9,3.7895]
[1740722279102,1.9823,127.03,126.9,3.7895]
[1740722279403,0.0598036,126.99,126.96,2.216e-05]
[1740722279603,7.8835,126.97,126.96,2.216e-05]
[1740722280007,11.8235,126.97,126.96,2.216e-05]
[1740722281003,190.0,126.96,126.84,4.1427]
[1740722281200,206.7461,126.95,126.84,4.1427]
[1740722281505,16.7461,126.95,126.8,7.9814]
[1740722282297,0.05398989,126.89,126.86,0.05811703]
[1740722282708,7.8878,126.91,126.8,7.9814]
[1740722282903,0.05044112,126.89,126.86,0.05272556]
[1740722284509,0.05044112,126.89,126.86,7.94302556]
[1740722284708,0.05044112,126.89,126.86,0.05272556]
[1740722284911,7.885,126.95,126.89,7.8884]
[1740722285207,16.7261,126.99,126.87,4.1524]
[1740722285409,16.7261,126.99,126.88,3.8712]
[1740722285609,1.9861,126.99,126.88,3.8712]
[1740722285810,214.62,127.05,126.88,3.8712]
[1740722286009,1.9861,127.04,126.88,3.8712]
[1740722286208,5.262e-05,126.95,126.94,7.8854]
[1740722286611,191.989,127.08,126.94,3.94]
[1740722286914,41.9364297,127.09,126.95,4.1428]
[1740722287102,41.9364297,127.09,126.96,3.8712]
[1740722287302,41.9364297,127.09,127.01,0.0514023]
[1740722287712,41.9364297,127.09,127.0,14.72]
[1740722287910,41.9364297,127.09,127.04,0.05145325]
[1740722288308,41.9364297,127.09,127.06,7.8779]
[1740722288808,29.3943297,127.09,127.06,7.8779]
[1740722289012,29.3943297,127.09,127.06,4.1428]
[1740722290107,77.57071702,127.1,127.06,4.1428]
[1740722290306,73.28821702,127.1,127.07,14.7]
[1740722290508,60.74441702,127.1,127.07,14.7]
[1740722290709,3.29283549,127.1,127.07,18.69954158]
[1740722290915,3.29283549,127.1,127.07,14.75954158]
[1740722291607,3.9595,127.16,127.07,0.05954158]
[1740722291608,4.0278,127.15,127.07,0.05954158]
[1740722291808,4.0278,127.15,127.02,14.7]
[1740722292108,4.0278,127.15,127.1,0.05939526]
[1740722292314,4.0278,127.15,127.03,7.8793]
[1740722292514,4.0278,127.15,127.11,0.05854992]
[1740722292714,7.8752,127.11,127.03,7.8793]
[1740722293013,4.0278,127.15,127.02,14.7]
[1740722293211,3.9595,127.16,127.03,1.42938626]
[1740722293409,4.0278,127.2,127.12,7.8737]
[1740722293612,4.0278,127.2,127.09,14.68]
[1740722293817,0.06008582,127.16,127.13,0.05339339]
[1740722294908,720.83665104,128.38,127.13,0.05339339]
[1740722294909,190.0,127.41,127.13,0.05339339]
[1740722295214,3.8638,127.25,127.16,7.8717]
[1740722295416,7.8688,127.21,127.09,14.68]
[1740722295714,3.8638,127.25,127.16,7.8712]
[1740722296011,8.287,127.27,127.17,14.66]
[1740722296215,8.287,127.27,127.19,0.05525526]
[1740722296410,4.1689,127.27,127.19,0.05525526]
[1740722296616,7.8631,127.31,127.17,14.66]
[1740722296812,3.9806,127.36,127.17,14.66]
[1740722296813,4.0064,127.35,127.17,14.66]
[1740722297118,7.8607,127.34,127.26,7.8651]
[1740722297317,7.8607,127.34,127.18,3.00017849]
[1740722297318,4.0064,127.35,127.24,14.66]
[1740722297513,3.9806,127.36,127.25,1.62149344]
[1740722297715,3.9806,127.36,127.25,1.57170923]
[1740722298112,3.9806,127.36,127.31,7.8625]
[1740722298315,4.0064,127.37,127.29,0.05392502]
[1740722298519,4.0064,127.37,127.26,1.42673286]
[1740722298715,3.8638,127.38,127.32,7.91524088]
[1740722299025,4.0064,127.45,127.32,0.05394088]
[1740722299224,4.0064,127.45,127.37,7.8583]
[1740722299427,4.0064,127.45,127.31,14.7]
[1740722299623,4.1264,127.47,127.32,1.42538196]
[1740722299924,7.5562,127.53,127.4,0.0577383]
[1740722300113,1.44358619,127.52,127.4,0.0577383]
[1740722300313,1.44358619,127.52,127.37,14.74]
[1740722300516,1.44358619,127.52,127.45,0.05051932]
[1740722300715,7.8513,127.5,127.45,0.05051932]
[1740722300914,11.6759,127.53,127.45,0.05051932]
[1740722301123,11.6759,127.53,127.44,14.76]
[1740722301521,11.6759,127.53,127.48,0.05972747]
[1740722301720,14.8,127.55,127.34,213.94]
[1740722301921,7.8848,127.52,127.36,14.8]
[1740722302124,7.8848,127.52,127.37,1.42460837]
[1740722302321,3.7651,127.52,127.38,1.57010519]
[1740722302523,3.7651,127.52,127.39,1.42460837]
[1740722302719,3.7651,127.52,127.4,1.56985871]
[1740722302919,3.7651,127.52,127.41,1.42242666]
[1740722303222,0.05855133,127.47,127.44,0.04980913]
[1740722303419,5.133e-05,127.47,127.44,0.04980913]
[1740722303624,5.133e-05,127.47,127.44,3.92]
[1740722303824,5.133e-05,127.47,127.43,14.76]
[1740722304326,5.133e-05,127.47,127.46,7.8532]
[1740722304821,3.9464,127.59,127.46,5.34362576]
[1740722305123,4.1197,127.6,127.47,2.99234264]
[1740722305326,4.1197,127.6,127.48,1.42334602]
[1740722305517,3.9464,127.65,127.48,2.99221956]
[1740722305724,3.9464,127.65,127.49,2.99209651]
[1740722305922,3.9464,127.65,127.55,7.8474]
[1740722306122,3.8352,127.64,127.55,0.05981577]
[1740722306525,3.8352,127.64,127.5,1.56862745]
[1740722306926,3.8352,127.64,127.58,0.05114267]
[1740722307126,7.9506,127.64,127.58,0.05114267]
[1740722308331,7.9506,127.64,127.5,1.56862745]
[1740722308534,1.4422834,127.63,127.5,1.56862745]
[1740722308933,214.9422834,127.63,127.44,0.69952283]
[1740722309123,1.4422834,127.62,127.44,0.69952283]
[1740722309633,0.05701595,127.54,127.52,0.05705787]
[1740722309833,0.05701595,127.54,127.44,0.69952283]
[1740722310028,1.4422834,127.62,127.44,0.69952283]
[1740722310329,7.9506,127.64,127.45,1.42280683]
[1740722310534,7.9506,127.64,127.55,7.8475]
[1740722310733,7.9506,127.64,127.5,15.0]
[1740722311135,0.05005915,127.56,127.53,0.05163995]
[1740722312739,0.05005915,127.56,127.55,7.8477]
[1740722312939,0.05005915,127.56,127.53,0.05163995]
[1740722313938,0.05005915,127.56,127.51,7.8496]
[1740722314241,5.915e-05,127.56,127.52,15.2]
[1740722314442,5.915e-05,127.56,127.55,7.8477]
[1740722314744,7.9506,127.64,127.52,15.2]
[1740722315634,0.05487104,127.59,127.57,0.05413751]
[1740722315840,7.104e-05,127.59,127.57,0.05413751]
[1740722316036,7.9506,127.64,127.57,0.05413751]
[1740722316740,3.8352,127.64,127.57,0.05413751]
[1740722316939,3.8352,127.64,127.63,7.8428]
[1740722317131,3.8352,127.64,127.57,0.05413751]
[1740722317336,0.05202796,127.62,127.52,15.2]
[1740722317731,3.9384,127.63,127.59,0.05618822]
[1740722317941,3.9384,127.63,127.56,7.8465]
[1740722318241,0.05949939,127.58,127.5,15.32]
[1740722318443,3.9384,127.63,127.5,15.32]
[1740722319240,0.05986585,127.58,127.55,0.05312968]
[1740722319642,0.05986585,127.58,127.5,15.32]
[1740722319843,0.05986585,127.58,127.55,0.0541879]
[1740722320039,3.9384,127.63,127.55,0.0541879]
[1740722320246,7.8447,127.6,127.52,7.8494]
[1740722320444,0.05869859,127.58,127.52,7.8494]
[1740722320742,0.05869859,127.58,127.45,15.32]
[1740722320942,0.05869859,127.58,127.43,0.0877]
[1740722320943,0.05869859,127.58,127.52,7.8491]
[1740722321145,7.8448,127.6,127.52,7.8491]
[1740722321345,3.9384,127.63,127.46,15.32]
[1740722321534,3.9384,127.63,127.54,0.05785412]
[1740722321535,0.05971299,127.56,127.54,0.05785412]
[1740722321935,3.9384,127.63,127.55,7.8477]
[1740722322141,0.05779192,127.56,127.55,7.8477]
[1740722322336,0.05779192,127.56,127.54,0.0576913]
[1740722322639,3.9384,127.63,127.46,15.32]